[Event "FIDE World Rapid-ch Open 2018"]
[White "Vitiugov, Nikita"]
[Black "Van Foreest, Jorden"]
[Site "St. Petersburg"]
[Round "1.68"]
[Annotator "ChessBase"]
[Result "1-0"]
[Date "2018.12.26"]
[WhiteElo "2719"]
[BlackElo "2614"]
[PlyCount "145"]
[TimeControl "900+10"]

1. e4 {[%emt 0:0:0]} c5 {[%emt 0:0:0]} 2. Nf3 {[%emt 0:0:0]} d6 {[%emt 0:0:0]} 3. Nc3 {[%emt 0:0:0]} Nf6 {[%emt 0:0:49]} 4. e5 {[%emt 0:0:11]} dxe5 {[%emt 0:0:3]} 5. Nxe5 {[%emt 0:0:2]} e6 {[%emt 0:1:45]} 6. Bb5+ {[%emt 0:0:33]
} Bd7 {[%emt 0:0:50]} 7. Nxd7 {[%emt 0:1:23]} Nbxd7 {[%emt 0:0:0]} 8. 0-0 {[%emt 0:0:5]} a6 {[%emt 0:0:41]} 9. Be2 {[%emt 0:0:6]} Qc7 {[%emt 0:0:2]} 10. d4 {[%emt 0:0:47]} Bd6 {[%emt 0:0:33]} 11. g3 {[%emt 0:0:0]} cxd4 {[%emt 0:0:50]} 12. Qxd4 {[%emt 0:0:3]} 0-0 {[%emt 0:0:4]} 13. Ne4 {[%emt 0:1:34]} Be5 {[%emt 0:0:55]} 14. Nxf6+ {[%emt 0:0:10]} Bxf6 {[%emt 0:0:8]
} 15. Qe4 {[%emt 0:0:16]} Nc5 {[%emt 0:1:9]} 16. Qf3 {[%emt 0:0:0]} Rfd8 {[%emt 0:0:13]} 17. c3 {[%emt 0:0:36]} Rac8 {[%emt 0:0:52]} 18. Rb1 {[%emt 0:0:27]} b5 {[%emt 0:1:38]} 19. h4 {[%emt 0:0:22]} Nd7 {[%emt 0:0:0]} 20. Bf4 {[%emt 0:0:28]} Be5 {[%emt 0:0:17]} 21. Bg5 {[%emt 0:0:24]} Bf6 {[%emt 0:0:3]} 22. Bf4 {[%emt 0:0:16]} Be5 {[%emt 0:0:2]} 23. Be3 {[%emt 0:0:14]
} Nb6 {[%emt 0:0:2]} 24. Rbd1 {[%emt 0:0:20]} Nd5 {[%emt 0:0:0]} 25. Bc1 {[%emt 0:0:11]} Rb8 {[%emt 0:0:7]} 26. h5 {[%emt 0:0:27]} h6 {[%emt 0:0:13]
} 27. Bd3 {[%emt 0:0:49]} Nf6 {[%emt 0:0:26]} 28. a3 {[%emt 0:0:0]} Rd5 {[%emt 0:0:4]} 29. Bb1 {[%emt 0:0:18]} Rbd8 {[%emt 0:0:54]} 30. Rxd5 {[%emt 0:0:13]} Rxd5 {[%emt 0:0:2]} 31. Rd1 {[%emt 0:0:38]} Rxd1+ {[%emt 0:0:33]
} 32. Qxd1 {[%emt 0:0:2]} Qd6 {[%emt 0:2:2]} 33. Qxd6 {[%emt 0:0:53]
} Bxd6 {[%emt 0:0:2]} 34. Bd3 {[%emt 0:0:2]} Nxh5 {[%emt 0:0:0]} 35. b4 {[%emt 0:0:55]} Bc7 {[%emt 0:1:21]} 36. c4 {[%emt 0:0:53]} bxc4 {[%emt 0:0:2]} 37. Bxc4 {[%emt 0:0:1]} a5 {[%emt 0:0:1]} 38. Bd2 {[%emt 0:0:12]
} axb4 {[%emt 0:0:5]} 39. Bxb4 {[%emt 0:0:8]} Bb6 {[%emt 0:0:0]} 40. Kg2 {[%emt 0:1:48]} Nf6 {[%emt 0:0:1]} 41. a4 {[%emt 0:0:5]} Ng4 {[%emt 0:0:25]} 42. a5 {[%emt 0:0:20]} Ba7 {[%emt 0:0:1]} 43. Be1 {[%emt 0:0:29]
} Kf8 {[%emt 0:0:6]} 44. Be2 {[%emt 0:0:15]} f5 {[%emt 0:0:0]} 45. a6 {[%emt 0:0:41]} Ke7 {[%emt 0:0:8]} 46. Bb4+ {[%emt 0:0:54]} Kd8 {[%emt 0:0:10]} 47. Bc4 {[%emt 0:0:56]} Nxf2 {[%emt 0:0:3]} 48. Bxe6 {[%emt 0:0:5]
} Ng4 {[%emt 0:0:13]} 49. Bd6 {[%emt 0:0:22]} g6 {[%emt 0:0:0]} 50. Kf3 {[%emt 0:0:3]} Nf6 {[%emt 0:0:1]} 51. Bf4 {[%emt 0:0:27]} g5 {[%emt 0:0:8]} 52. Be5 {[%emt 0:0:15]} Nd7 {[%emt 0:0:2]} 53. Bg7 {[%emt 0:0:7]
} f4 {[%emt 0:0:8]} 54. Bxd7 {[%emt 0:0:44]} Kxd7 {[%emt 0:0:0]} 55. g4 {[%emt 0:0:1]} Kc6 {[%emt 0:0:34]} 56. Bxh6 {[%emt 0:0:3]} Kb5 {[%emt 0:0:0]} 57. Bxg5 {[%emt 0:0:3]} Kxa6 {[%emt 0:0:2]} 58. Bxf4 {[%emt 0:0:42]
} Kb5 {[%emt 0:0:8]} 59. Be3 {[%emt 0:0:10]} Bb8 {[%emt 0:0:0]} 60. Bf4 {[%emt 0:0:13]} Ba7 {[%emt 0:0:1]} 61. g5 {[%emt 0:0:16]} Kc6 {[%emt 0:0:12]} 62. g6 {[%emt 0:0:3]} Bd4 {[%emt 0:0:2]} 63. Ke4 {[%emt 0:0:0]} Bg7 {[%emt 0:0:14]} 64. Be5 {[%emt 0:0:7]} Bf8 {[%emt 0:0:41]} 65. Kf5 {[%emt 0:0:11]} Kd7 {[%emt 0:0:1]} 66. Kf6 {[%emt 0:0:7]} Ke8 {[%emt 0:0:0]
} 67. Bf4 {[%emt 0:0:31]} Bc5 {[%emt 0:0:37]} 68. Kg7 {[%emt 0:0:0]} Bd4+ {[%emt 0:0:19]} 69. Kh7 {[%emt 0:0:5]} Ke7 {[%emt 0:0:11]} 70. Bh6 {[%emt 0:0:8]} Ke6 {[%emt 0:0:9]} 71. Bg7 {[%emt 0:0:2]} Bc5 {[%emt 0:0:1]
} 72. Bb2 {[%emt 0:0:6]} Bf8 {[%emt 0:0:3]} 73. Ba3 {[%emt 0:0:0]} 1-0

[Event "FIDE World Rapid-ch Open 2018"]
[White "Steinberg, Nitzan"]
[Black "Adly, Ahmed"]
[Site "St. Petersburg"]
[Round "1.69"]
[Annotator "ChessBase"]
[Result "1-0"]
[Date "2018.12.26"]
[WhiteElo "2532"]
[BlackElo "2626"]
[PlyCount "99"]
[TimeControl "900+10"]

1. e4 {[%emt 0:0:0]} c5 {[%emt 0:0:0]} 2. Nf3 {[%emt 0:0:0]} d6 {[%emt 0:0:0]} 3. d4 {[%emt 0:0:3]} cxd4 {[%emt 0:0:0]} 4. Nxd4 {[%emt 0:0:3]} Nf6 {[%emt 0:0:0]} 5. Nc3 {[%emt 0:0:2]} a6 {[%emt 0:0:0]} 6. h4 {[%emt 0:0:13]
} e5 {[%emt 0:0:13]} 7. Nb3 {[%emt 0:0:2]} g6 {[%emt 0:0:10]} 8. Be2 {[%emt 0:1:35]} Be6 {[%emt 0:0:27]} 9. h5 {[%emt 0:0:19]} Nbd7 {[%emt 0:0:38]
} 10. g4 {[%emt 0:0:43]} Nb6 {[%emt 0:0:20]} 11. hxg6 {[%emt 0:0:0]} fxg6 {[%emt 0:0:3]} 12. g5 {[%emt 0:0:19]} Nfd7 {[%emt 0:0:9]} 13. a4 {[%emt 0:0:57]} Nc5 {[%emt 0:1:42]} 14. a5 {[%emt 0:0:45]} Nbd7 {[%emt 0:0:0]} 15. Nxc5 {[%emt 0:1:5]} Nxc5 {[%emt 0:0:16]} 16. b4 {[%emt 0:0:6]} Nd7 {[%emt 0:0:17]} 17. Nd5 {[%emt 0:0:32]} Be7 {[%emt 0:0:29]} 18. Bg4 {[%emt 0:0:54]
} Nf8 {[%emt 0:0:1]} 19. Be3 {[%emt 0:0:42]} Rc8 {[%emt 0:0:0]} 20. Bxe6 {[%emt 0:0:40]} Nxe6 {[%emt 0:0:2]} 21. Qg4 {[%emt 0:0:3]} Kf7 {[%emt 0:0:23]} 22. Qf3+ {[%emt 0:1:47]} Kg7 {[%emt 0:0:26]} 23. Qg4 {[%emt 0:0:15]
} Nd4 {[%emt 0:0:30]} 24. Bxd4 {[%emt 0:0:56]} exd4 {[%emt 0:0:0]} 25. f4 {[%emt 0:1:7]} Rxc2 {[%emt 0:3:18]} 26. Qd1 {[%emt 0:0:4]} Rc8 {[%emt 0:0:2]} 27. Qxd4+ {[%emt 0:0:29]} Kf7 {[%emt 0:0:16]} 28. Kd2 {[%emt 0:1:1]
} h5 {[%emt 0:2:27]} 29. gxh6 {[%emt 0:1:58]} Bf6 {[%emt 0:0:0]} 30. e5 {[%emt 0:0:10]} dxe5 {[%emt 0:0:19]} 31. fxe5 {[%emt 0:0:1]} Bg5+ {[%emt 0:0:2]} 32. Kd3 {[%emt 0:0:56]} Ke6 {[%emt 0:0:16]} 33. Ke4 {[%emt 0:0:1]
} Rc2 {[%emt 0:0:29]} 34. Rad1 {[%emt 0:1:5]} Rf8 {[%emt 0:0:0]} 35. Rhf1 {[%emt 0:0:49]} Rxf1 {[%emt 0:2:31]} 36. Rxf1 {[%emt 0:0:1]} Re2+ {[%emt 0:0:1]} 37. Kf3 {[%emt 0:0:15]} Rd2 {[%emt 0:0:1]} 38. Nf4+ {[%emt 0:0:23]
} Bxf4 {[%emt 0:0:2]} 39. Qc4+ {[%emt 0:0:8]} Ke7 {[%emt 0:0:0]} 40. Qc5+ {[%emt 0:0:11]} Ke8 {[%emt 0:0:4]} 41. Kxf4 {[%emt 0:0:11]
} Rd3 {[%emt 0:0:28]} 42. Ke4 {[%emt 0:0:7]} Rd4+ {[%emt 0:0:28]} 43. Qxd4 {[%emt 0:0:5]} Qh4+ {[%emt 0:0:1]} 44. Rf4 {[%emt 0:0:5]} Qh1+ {[%emt 0:0:0]} 45. Rf3 {[%emt 0:0:8]} Qe1+ {[%emt 0:0:1]} 46. Kd5 {[%emt 0:0:7]} Qe2 {[%emt 0:0:1]} 47. Qd3 {[%emt 0:0:6]} Qa2+ {[%emt 0:0:1]} 48. Kd6 {[%emt 0:0:3]
} Qg8 {[%emt 0:0:3]} 49. Qd5 {[%emt 0:0:9]} Qh7 {[%emt 0:0:0]} 50. Qe6+ {[%emt 0:0:4]} 1-0

[Event "FIDE World Rapid-ch Open 2018"]
[White "Amin, Bassem"]
[Black "Lobanov, Sergei"]
[Site "St. Petersburg"]
[Round "1.70"]
[Annotator "ChessBase"]
[Result "1-0"]
[Date "2018.12.26"]
[WhiteElo "2710"]
[BlackElo "2526"]
[PlyCount "95"]
[TimeControl "900+10"]

1. Nf3 {[%emt 0:0:1]} d5 {[%emt 0:0:0]} 2. g3 {[%emt 0:0:2]} Nf6 {[%emt 0:0:0]
} 3. Bg2 {[%emt 0:0:2]} c6 {[%emt 0:0:14]} 4. 0-0 {[%emt 0:0:0]} Bg4 {[%emt 0:0:5]} 5. d3 {[%emt 0:0:6]} Nbd7 {[%emt 0:0:35]} 6. Nbd2 {[%emt 0:0:6]} e5 {[%emt 0:0:45]} 7. e4 {[%emt 0:0:4]} Bd6 {[%emt 0:0:20]
} 8. h3 {[%emt 0:0:5]} Bh5 {[%emt 0:0:25]} 9. exd5 {[%emt 0:0:3]} cxd5 {[%emt 0:0:5]
} 10. c4 {[%emt 0:0:4]} 0-0 {[%emt 0:1:7]} 11. cxd5 {[%emt 0:0:0]} Nxd5 {[%emt 0:0:22]} 12. Qb3 {[%emt 0:0:3]} N5b6 {[%emt 0:3:0]} 13. Ne4 {[%emt 0:0:29]} Be7 {[%emt 0:0:14]} 14. a4 {[%emt 0:0:4]} a5 {[%emt 0:1:50]
} 15. Be3 {[%emt 0:0:8]} Bb4 {[%emt 0:1:54]} 16. d4 {[%emt 0:0:0]} Bxf3 {[%emt 0:3:25]} 17. Bxf3 {[%emt 0:0:3]} Kh8 {[%emt 0:0:1]} 18. dxe5 {[%emt 0:2:49]} Nxe5 {[%emt 0:0:5]} 19. Bg2 {[%emt 0:0:13]} Qd5 {[%emt 0:1:1]
} 20. Qc2 {[%emt 0:2:42]} Nbc4 {[%emt 0:1:14]} 21. Bf4 {[%emt 0:0:56]
} Qd3 {[%emt 0:0:50]} 22. Rac1 {[%emt 0:0:11]} Rac8 {[%emt 0:0:0]} 23. Bxe5 {[%emt 0:2:29]} Qxc2 {[%emt 0:0:1]} 24. Bxg7+ {[%emt 0:0:0]} Kxg7 {[%emt 0:0:1]} 25. Rxc2 {[%emt 0:0:1]} Nd6 {[%emt 0:0:53]} 26. Nc3 {[%emt 0:1:14]} b5 {[%emt 0:0:3]} 27. Rfc1 {[%emt 0:0:33]} Bxc3 {[%emt 0:0:4]
} 28. Rxc3 {[%emt 0:0:1]} bxa4 {[%emt 0:0:18]} 29. Bc6 {[%emt 0:0:21]
} Rb8 {[%emt 0:0:6]} 30. Rd1 {[%emt 0:0:42]} Nf5 {[%emt 0:0:0]} 31. Rc5 {[%emt 0:0:13]} Rfc8 {[%emt 0:0:13]} 32. Rd7 {[%emt 0:1:19]} Nh6 {[%emt 0:0:13]} 33. h4 {[%emt 0:0:9]} Rxb2 {[%emt 0:0:14]} 34. Rg5+ {[%emt 0:0:2]
} Kf8 {[%emt 0:0:6]} 35. Bxa4 {[%emt 0:0:3]} Rc4 {[%emt 0:0:0]} 36. Bd1 {[%emt 0:2:2]} a4 {[%emt 0:0:8]} 37. Ra5 {[%emt 0:0:13]} Rb1 {[%emt 0:0:16]} 38. Kg2 {[%emt 0:0:5]} Ra1 {[%emt 0:0:6]} 39. Bh5 {[%emt 0:0:43]
} Ra2 {[%emt 0:0:13]} 40. Rd6 {[%emt 0:0:7]} Ng8 {[%emt 0:0:0]} 41. Rd8+ {[%emt 0:0:4]} Kg7 {[%emt 0:0:11]} 42. Rg5+ {[%emt 0:0:7]} Kf6 {[%emt 0:0:3]} 43. Rdxg8 {[%emt 0:0:53]} Rcc2 {[%emt 0:0:1]} 44. R8g7 {[%emt 0:0:21]} Rxf2+ {[%emt 0:0:4]} 45. Kh3 {[%emt 0:0:1]} Ke6 {[%emt 0:0:0]} 46. Rxh7 {[%emt 0:0:21]} Rad2 {[%emt 0:0:33]} 47. Ra5 {[%emt 0:0:22]
} f5 {[%emt 0:0:13]} 48. Rh6+ {[%emt 0:0:3] Kd5} 1-0

[Event "FIDE World Rapid-ch Open 2018"]
[White "Zubritskiy, Artyom"]
[Black "Antipov, Mikhail Al."]
[Site "St. Petersburg"]
[Round "1.71"]
[Annotator "ChessBase"]
[Result "1-0"]
[Date "2018.12.26"]
[WhiteElo "2442"]
[BlackElo "2589"]
[PlyCount "113"]
[TimeControl "900+10"]

1. c4 e5 2. g3 h5 3. h4 Nc6 4. Bg2 Bc5 5. Nc3 a6 6. Nf3 d6 7. 0-0 Nge7 8. a3 Bg4 9. b4 Ba7 10. e3 f5 11. Qc2 e4 12. Ng5 Ne5 13. d4 Nxc4 14. Ne6 Qd7 15. d5 Ne5 16. Nxg7+ Kf7 17. Ne6 Rag8 18. Bb2 Nf3+ 19. Bxf3 Bxf3 20. Ne2 Nxd5 21. Ng5+ Rxg5 22. hxg5 f4 23. Kh2 Qg4 24. Nxf4 Nxf4 25. Qxc7+ Ke6 26. exf4 h4 27. f5+ Qxf5 28. Bxh8 hxg3+ 29. fxg3 Qxg5 30. Qc8+ Ke7 31. Rxf3 Qd2+ 32. Rf2 Qxf2+ 33. Kh3 Qf3 34. Qxb7+ Ke6 35. Qxa7 Qh5+ 36. Kg2 Qf3+ 37. Kh2 e3 38. Qd4 Kd7 39. Rd1 Ke8 40. Qd5 Qf2+ 41. Kh3 e2 42. Qe4+ Kd7 43. Qb7+ Ke8 44. Qe4+ Kd7 45. Rc1 Qf1+ 46. Rxf1 exf1=Q+ 47. Kh4 Qc1 48. Bd4 Qxa3 49. Be3 Qb2 50. Bf4 Qh8+ 51. Kg4 Qg7+ 52. Kf3 Qc3+ 53. Ke2 a5 54. Qf5+ Kd8 55. Qf8+ Kd7 56. Qxd6+ Ke8 57. Qe5+ 1-0

[Event "FIDE World Rapid-ch Open 2018"]
[White "Vallejo Pons, Francisco"]
[Black "Sharma, Dinesh K."]
[Site "St. Petersburg"]
[Round "1.72"]
[Annotator "ChessBase"]
[Result "0-1"]
[Date "2018.12.26"]
[WhiteElo "2695"]
[BlackElo "2295"]
[PlyCount "150"]
[TimeControl "900+10"]

1. e4 {[%emt 0:0:0]} c5 {[%emt 0:0:0]} 2. Nf3 {[%emt 0:0:1]} e6 {[%emt 0:0:0]} 3. Nc3 {[%emt 0:0:14]} Nc6 {[%emt 0:0:0]} 4. d4 {[%emt 0:0:2]} cxd4 {[%emt 0:0:0]} 5. Nxd4 {[%emt 0:0:3]} Qc7 {[%emt 0:0:5]} 6. g3 {[%emt 0:0:2]
} a6 {[%emt 0:0:4]} 7. Bg2 {[%emt 0:0:3]} h5 {[%emt 0:0:6]} 8. h3 {[%emt 0:0:37]} h4 {[%emt 0:0:25]} 9. g4 {[%emt 0:0:11]} Bc5 {[%emt 0:0:0]} 10. Nb3 {[%emt 0:0:56]} Ba7 {[%emt 0:0:2]} 11. Qe2 {[%emt 0:0:25]} Nge7 {[%emt 0:0:16]} 12. f4 {[%emt 0:0:10]} b5 {[%emt 0:0:56]} 13. Rf1 {[%emt 0:1:55]
} b4 {[%emt 0:5:53]} 14. Na4 {[%emt 0:1:14]} a5 {[%emt 0:0:25]
} 15. Be3 {[%emt 0:3:15]} g5 {[%emt 0:0:23]} 16. e5 {[%emt 0:1:21]} Bxe3 {[%emt 0:1:10]
} 17. Qxe3 {[%emt 0:0:7]} Ng6 {[%emt 0:0:11]} 18. fxg5 {[%emt 0:3:8]
} Qxe5 {[%emt 0:0:13]} 19. Rf3 {[%emt 0:1:28]} Nf4 {[%emt 0:0:0]} 20. Bh1 {[%emt 0:0:1]} Qxe3+ {[%emt 0:0:11]} 21. Rxe3 {[%emt 0:0:1]} Rg8 {[%emt 0:0:42]} 22. 0-0-0 {[%emt 0:2:52]} Rxg5 {[%emt 0:0:4]} 23. Rf1 {[%emt 0:0:5]
} Ng6 {[%emt 0:0:14]} 24. Nb6 {[%emt 0:0:9]} Rb8 {[%emt 0:0:0]} 25. Nc4 {[%emt 0:0:26]} Nge5 {[%emt 0:0:52]} 26. Nxe5 {[%emt 0:0:19]} Nxe5 {[%emt 0:0:5]} 27. Nxa5 {[%emt 0:0:11]} Ba6 {[%emt 0:0:39]} 28. Rg1 {[%emt 0:0:10]
} Nd3+ {[%emt 0:0:28]} 29. cxd3 {[%emt 0:0:9]} Rxa5 {[%emt 0:0:0]} 30. Kb1 {[%emt 0:0:4]} Rc8 {[%emt 0:0:22]} 31. d4 {[%emt 0:0:15]} Bc4 {[%emt 0:0:18]} 32. a3 {[%emt 0:0:9]} bxa3 {[%emt 0:0:6]} 33. Rxa3 {[%emt 0:0:0]
} Rxa3 34. bxa3 {[%emt 0:0:1]} Rb8+ {[%emt 0:0:5]} 35. Kc2 {[%emt 0:0:16]
} Rb3 {[%emt 0:0:9]} 36. a4 {[%emt 0:0:18]} Rxh3 {[%emt 0:0:0]} 37. Ra1 {[%emt 0:0:17]} Bb3+ {[%emt 0:0:1]} 38. Kd2 {[%emt 0:0:2]} Bxa4 {[%emt 0:0:1]} 39. d5 {[%emt 0:0:13]} Ke7 {[%emt 0:0:8]} 40. Ke2 {[%emt 0:0:5]
} Bb3 {[%emt 0:0:7]} 41. dxe6 {[%emt 0:0:13]} Bxe6 {[%emt 0:0:0]} 42. Bf3 {[%emt 0:0:3]} Rg3 {[%emt 0:0:8]} 43. Ra4 {[%emt 0:0:2]} Kf6 {[%emt 0:0:3]} 44. Kf2 {[%emt 0:0:5]} Kg6 {[%emt 0:0:5]} 45. Rb4 {[%emt 0:0:9]
} d5 {[%emt 0:0:8]} 46. Rd4 {[%emt 0:0:7]} Kg5 {[%emt 0:0:0]} 47. Bxd5 {[%emt 0:0:17]} Rxg4 {[%emt 0:0:3]} 48. Rd3 {[%emt 0:0:27]} Rb4 {[%emt 0:0:38]} 49. Bxe6 {[%emt 0:0:13]} fxe6 {[%emt 0:0:1]} 50. Rd8 {[%emt 0:0:3]
} Rf4+ {[%emt 0:0:16]} 51. Ke3 {[%emt 0:0:12]} Rf6 {[%emt 0:0:0]} 52. Rg8+ {[%emt 0:0:8]} Rg6 {[%emt 0:0:6]} 53. Rh8 {[%emt 0:0:8]} Kg4 {[%emt 0:0:3]} 54. Kf2 {[%emt 0:0:6]} h3 {[%emt 0:0:19]} 55. Kg1 {[%emt 0:0:16]
} Kg3 {[%emt 0:0:2]} 56. Ra8 {[%emt 0:0:7]} e5 {[%emt 0:0:0]} 57. Ra3+ {[%emt 0:0:4]} Kh4+ {[%emt 0:0:17]} 58. Kf2 {[%emt 0:0:27]} Rg2+ {[%emt 0:0:17]} 59. Kf1 {[%emt 0:0:3]} Rg3 {[%emt 0:0:37]} 60. Ra4+ {[%emt 0:0:17]
} Rg4 {[%emt 0:0:5]} 61. Ra8 {[%emt 0:0:6]} Rf4+ {[%emt 0:0:0]} 62. Kg1 {[%emt 0:0:8]} e4 {[%emt 0:0:6]} 63. Ra3 {[%emt 0:0:21]} Rg4+ {[%emt 0:0:18]} 64. Kh2 {[%emt 0:0:5]} Rg2+ {[%emt 0:0:2]} 65. Kh1 {[%emt 0:0:1]
} Re2 {[%emt 0:0:2]} 66. Ra8 {[%emt 0:0:10]} Kg3 {[%emt 0:0:0]} 67. Rg8+ {[%emt 0:0:4]} Kf3 {[%emt 0:0:2]} 68. Rh8 {[%emt 0:0:5]} Re1+ {[%emt 0:0:14]} 69. Kh2 {[%emt 0:0:1]} e3 {[%emt 0:0:2]} 70. Rf8+ {[%emt 0:0:17]
} Ke2 {[%emt 0:0:8]} 71. Ra8 {[%emt 0:0:4]} Rf1 {[%emt 0:0:0]} 72. Kxh3 {[%emt 0:0:10]} Kf2 {[%emt 0:0:3]} 73. Rf8+ {[%emt 0:0:14]} Ke1 {[%emt 0:0:3]} 74. Ra8 {[%emt 0:0:8]} e2 {[%emt 0:0:57]} 75. Kg2 {[%emt 0:0:9]
} Kd2 {[%emt 0:0:5]} 0-1

[Event "FIDE World Rapid-ch Open 2018"]
[White "Fakhrutdinov, Timur"]
[Black "Inarkiev, Ernesto"]
[Site "St. Petersburg"]
[Round "1.73"]
[Annotator "ChessBase"]
[Result "0-1"]
[Date "2018.12.26"]
[WhiteElo "2481"]
[BlackElo "2693"]
[PlyCount "88"]
[TimeControl "900+10"]

1. e4 {[%emt 0:0:0]} e5 {[%emt 0:0:0]} 2. Nf3 {[%emt 0:0:0]} Nc6 {[%emt 0:0:0]
} 3. Bc4 {[%emt 0:0:0]} Nf6 {[%emt 0:0:0]} 4. Ng5 {[%emt 0:0:0]} d5 {[%emt 0:0:0]} 5. exd5 {[%emt 0:0:2]} Na5 {[%emt 0:0:0]} 6. Bb5+ {[%emt 0:0:2]} c6 {[%emt 0:0:0]} 7. dxc6 {[%emt 0:0:2]} bxc6 {[%emt 0:0:0]
} 8. Bd3 {[%emt 0:0:6]} Nd5 {[%emt 0:1:16]} 9. Nf3 {[%emt 0:0:0]} Nf4 {[%emt 0:0:14]} 10. 0-0 {[%emt 0:1:23]} Bd6 {[%emt 0:0:1]} 11. Re1 {[%emt 0:0:13]} Nxd3 {[%emt 0:0:2]} 12. cxd3 {[%emt 0:0:1]} 0-0 {[%emt 0:0:2]
} 13. Nc3 {[%emt 0:0:29]} c5 {[%emt 0:0:54]} 14. b3 {[%emt 0:0:0]} Re8 {[%emt 0:1:0]} 15. Ne4 {[%emt 0:0:41]} Ba6 {[%emt 0:0:8]} 16. Qc2 {[%emt 0:1:14]} Bf8 {[%emt 0:1:49]} 17. Ba3 {[%emt 0:1:25]} Rc8 {[%emt 0:0:56]
} 18. Qc3 {[%emt 0:2:10]} f6 {[%emt 0:2:8]} 19. Nxc5 {[%emt 0:0:0]} Nb7 {[%emt 0:0:15]} 20. b4 {[%emt 0:1:55]} Nxc5 {[%emt 0:0:1]} 21. bxc5 {[%emt 0:0:1]} Qd5 {[%emt 0:0:1]} 22. Qb3 {[%emt 0:1:17]} Red8 {[%emt 0:0:19]
} 23. d4 {[%emt 0:1:29]} exd4 {[%emt 0:1:45]} 24. Rac1 {[%emt 0:0:1]
} Rb8 {[%emt 0:1:37]} 25. Qxd5+ {[%emt 0:0:46]} Rxd5 {[%emt 0:0:0]} 26. Re6 {[%emt 0:0:37]} Bc8 {[%emt 0:1:55]} 27. Re4 {[%emt 0:0:11]} d3 {[%emt 0:0:28]} 28. h3 {[%emt 0:0:11]} Kf7 {[%emt 0:0:18]} 29. Ra4 {[%emt 0:0:7]
} a6 {[%emt 0:0:5]} 30. Nd4 {[%emt 0:0:44]} Bd7 {[%emt 0:0:0]} 31. Rac4 {[%emt 0:0:15]} Bb5 {[%emt 0:0:49]} 32. Rb4 {[%emt 0:0:9]} Ra8 {[%emt 0:1:30]} 33. Nxb5 {[%emt 0:0:9]} axb5 {[%emt 0:0:1]} 34. Rb3 {[%emt 0:0:1]
} Rd4 {[%emt 0:0:4]} 35. f3 {[%emt 0:0:23]} Rc4 {[%emt 0:0:0]} 36. Bb2 {[%emt 0:0:12]} Bxc5+ {[%emt 0:0:55]} 37. Kf1 {[%emt 0:0:3]} Rxa2 {[%emt 0:0:2]} 38. Rb1 {[%emt 0:0:4]} Rb4 {[%emt 0:0:36]} 39. Bc3 {[%emt 0:0:21]
} Rxb3 {[%emt 0:0:13]} 40. Rxb3 {[%emt 0:0:4]} b4 {[%emt 0:0:0]} 41. Bb2 {[%emt 0:0:2]} Ke6 {[%emt 0:0:1]} 42. Ke1 {[%emt 0:0:22]} Kd5 {[%emt 0:0:7]} 43. Bc1 {[%emt 0:0:10]} Kc4 {[%emt 0:0:4]} 44. Rb1 {[%emt 0:0:3]
} Bd4 {[%emt 0:0:2]} 0-1

[Event "FIDE World Rapid-ch Open 2018"]
[White "Kovalev, Vladislav"]
[Black "Tsoi, Dmitry"]
[Site "St. Petersburg"]
[Round "1.74"]
[Annotator "ChessBase"]
[Result "0-1"]
[Date "2018.12.26"]
[WhiteElo "2683"]
[BlackElo "2424"]
[PlyCount "216"]
[TimeControl "900+10"]

1. e4 e5 2. Nf3 d6 3. d4 exd4 4. Nxd4 Nf6 5. Nc3 Be7 6. Bf4 0-0 7. Qd2 c6 8. 0-0-0 b5 9. f3 b4 10. Na4 Bd7 11. b3 d5 12. exd5 Nxd5 13. Bg3 Bg5 14. f4 Bf6 15. Bc4 Nc3 16. Nxc3 bxc3 17. Qxc3 c5 18. Qf3 Qa5 19. Bxf7+ Kh8 20. Qxa8 Qa3+ 21. Kd2 Bxd4 22. Qd5 Qb4+ 23. Kc1 Qa3+ 24. Kd2 Qa5+ 25. Kc1 Bc3 26. Rd3 Qa3+ 27. Kd1 Bg4+ 28. Rf3 Qxa2 29. Re1 Qa1+ 30. Ke2 Qa6+ 31. Kf2 Bxe1+ 32. Kxe1 Bxf3 33. gxf3 Nc6 34. Qc4 Qa1+ 35. Kf2 Qd4+ 36. Kg2 Qxc4 37. Bxc4 Nb4 38. c3 Na2 39. Bf2 Rxf4 40. Bxc5 a5 41. Be3 Rf8 42. b4 axb4 43. Bxa2 bxc3 44. Bd5 Rc8 45. Be4 c2 46. Bc1 Rd8 47. Bg5 Rc8 48. Bc1 Rb8 49. Bg5 Rb1 50. Bxc2 Rb2 51. Kg3 Rxc2 52. Be3 Kg8 53. Bd4 Rc4 54. Ba1 Kf7 55. Bb2 g6 56. Be5 Ke6 57. Bf4 Kf5 58. Bd2 g5 59. Be3 h5 60. Ba7 Rc3 61. Kg2 Rb3 62. Bc5 Rb2+ 63. Kg3 Rc2 64. Bd6 Rc6 65. Bb8 Rc3 66. Kg2 Ra3 67. Bc7 Ke6 68. Bd8 Kf5 69. Bc7 Rb3 70. Bd6 Rb7 71. Kg3 Rb6 72. Bc7 Rb3 73. Kg2 Rd3 74. Bb8 Ke6 75. Bc7 Rd7 76. Bb6 Rb7 77. Bd8 Kf5 78. Ba5 Rb2+ 79. Kg3 h4+ 80. Kh3 Rf2 81. Bc7 Rxf3+ 82. Kg2 Rb3 83. h3 Ke4 84. Bd6 Rb2+ 85. Kg1 Kf3 86. Bc7 Rg2+ 87. Kh1 Rd2 88. Kg1 Rd7 89. Bb8 Re7 90. Bd6 Rb7 91. Kh1 Rd7 92. Bb8 Rd4 93. Bc7 Rf4 94. Kh2 Rb4 95. Bd6 Rb7 96. Kh1 Ra7 97. Bb8 Ra2 98. Bc7 Ra8 99. Kg1 Rc8 100. Bd6 Ke4 101. Kg2 Kd5 102. Be7 Re8 103. Bf6 Ke4 104. Bb2 Ra8 105. Bf6 Ra2+ 106. Kf1 Kf3 107. Kg1 Kg3 108. Kf1 Rf2+ 0-1

[Event "FIDE World Rapid-ch Open 2018"]
[White "Salgado Lopez, Ivan"]
[Black "Borisenko, Viacheslav"]
[Site "St. Petersburg"]
[Round "1.76"]
[Annotator "ChessBase"]
[Result "1/2-1/2"]
[Date "2018.12.26"]
[WhiteElo "2629"]
[BlackElo "2289"]
[PlyCount "113"]
[TimeControl "900+10"]

1. e4 {[%emt 0:0:0]} c5 {[%emt 0:0:0]} 2. c3 {[%emt 0:0:0]} e5 {[%emt 0:0:0]} 3. Nf3 {[%emt 0:0:17]} Nc6 {[%emt 0:0:4]} 4. Bb5 {[%emt 0:1:3]} d6 {[%emt 0:0:45]} 5. 0-0 {[%emt 0:0:11]} Nf6 {[%emt 0:0:35]} 6. Re1 {[%emt 0:0:0]} Be7 {[%emt 0:0:4]} 7. d4 {[%emt 0:0:13]} cxd4 {[%emt 0:0:45]} 8. cxd4 {[%emt 0:0:2]} exd4 {[%emt 0:0:13]} 9. Nxd4 {[%emt 0:0:8]} Bd7 {[%emt 0:0:10]
} 10. Nc3 {[%emt 0:0:27]} 0-0 {[%emt 0:0:41]} 11. Nxc6 {[%emt 0:2:21]
} bxc6 {[%emt 0:0:10]} 12. Bc4 {[%emt 0:0:5]} Ng4 {[%emt 0:0:0]} 13. h3 {[%emt 0:1:6]} Ne5 {[%emt 0:0:12]} 14. Bb3 {[%emt 0:0:4]} a5 {[%emt 0:0:59]
} 15. Bf4 {[%emt 0:0:26]} Qc8 {[%emt 0:1:12]} 16. Rc1 {[%emt 0:0:0]} Be6 {[%emt 0:0:16]} 17. Nd5 {[%emt 0:0:21]} Bd8 {[%emt 0:0:16]} 18. Ba4 {[%emt 0:0:26]} Ra6 {[%emt 0:1:16]} 19. Bb5 {[%emt 0:0:33]} Qa8 {[%emt 0:1:22]
} 20. Bxa6 {[%emt 0:0:32]} Qxa6 {[%emt 0:0:11]} 21. Bxe5 {[%emt 0:0:13]
} dxe5 {[%emt 0:0:14]} 22. Ne3 {[%emt 0:0:5]} Be7 {[%emt 0:0:0]} 23. Qa4 {[%emt 0:0:26]} Rc8 {[%emt 0:0:16]} 24. Red1 {[%emt 0:0:53]} g6 {[%emt 0:0:41]} 25. Nc4 {[%emt 0:0:13]} Bg5 {[%emt 0:0:15]} 26. Rc3 {[%emt 0:0:16]
} Rb8 {[%emt 0:2:3]} 27. Qc2 {[%emt 0:0:33]} a4 {[%emt 0:0:0]} 28. Nxe5 {[%emt 0:0:41]} Bxa2 {[%emt 0:0:9]} 29. Nxc6 {[%emt 0:2:4]} Rb6 {[%emt 0:0:33]} 30. Nd4 {[%emt 0:0:42]} Bf6 {[%emt 0:0:43]} 31. Ra3 {[%emt 0:0:13]
} Rb4 {[%emt 0:1:7]} 32. Rxa2 {[%emt 0:2:47]} Bxd4 {[%emt 0:0:0]} 33. Rd2 {[%emt 0:0:16]} Qb5 {[%emt 0:0:38]} 34. g3 {[%emt 0:0:28]} h5 {[%emt 0:0:1]} 35. h4 {[%emt 0:0:3]} Kg7 {[%emt 0:0:5]} 36. Kg2 {[%emt 0:0:5]
} Kg8 {[%emt 0:0:3]} 37. Qc8+ {[%emt 0:0:45]} Kg7 {[%emt 0:0:0]} 38. Qd8 {[%emt 0:0:7]} Qc4 {[%emt 0:0:50]} 39. Qd5 {[%emt 0:0:51]} Qxd5 {[%emt 0:0:2]} 40. exd5 {[%emt 0:0:1]} Kf6 {[%emt 0:0:1]} 41. Ra3 {[%emt 0:0:11]
} Ke5 {[%emt 0:0:2]} 42. Rf3 {[%emt 0:0:20]} f5 {[%emt 0:0:0]} 43. Rfd3 {[%emt 0:0:24]} Kxd5 {[%emt 0:0:4]} 44. Kf3 {[%emt 0:0:1]} Kc5 {[%emt 0:0:12]} 45. Rc2+ {[%emt 0:0:2]} Kb5 {[%emt 0:0:36]} 46. Rdd2 {[%emt 0:0:1]
} Rc4 {[%emt 0:0:46]} 47. Ke2 {[%emt 0:0:6]} Rxc2 {[%emt 0:0:0]} 48. Rxc2 {[%emt 0:0:2]} Kb4 {[%emt 0:0:1]} 49. Kd3 {[%emt 0:0:13]} Kb3 {[%emt 0:0:8]} 50. f4 {[%emt 0:0:28]} Bxb2 {[%emt 0:0:7]} 51. Rc6 {[%emt 0:0:1]
} Ba3 {[%emt 0:0:9]} 52. Rc3+ {[%emt 0:0:17]} Kb2 {[%emt 0:0:0]} 53. Rc4 {[%emt 0:0:2]} Kb3 {[%emt 0:0:1]} 54. Rc3+ {[%emt 0:0:4]} Kb2 {[%emt 0:0:1]} 55. Rc4 {[%emt 0:0:2]} Kb3 {[%emt 0:0:1]} 56. Rc3+ {[%emt 0:0:5]
} Kb2 {[%emt 0:0:1]} 57. Rc4 {[%emt 0:0:4]} 1/2-1/2